[Event "Early-Titled-Tuesday-Blitz-May-14-2024"]
[Site "Chess.com"]
[Date "2024.05.14"]
[Round "7"]
[White "patzer-reloaded"]
[Black "Felix-Rose"]
[Result "1-0"]
[WhiteElo "2404"]
[BlackElo "2248"]
[TimeControl "180+1"]
[EndTime "9:20:03 PDT"]
[Termination "patzer-reloaded won by resignation"]

1. d3 {[%clk 0:03:00.9]} 1... Nf6 {[%clk 0:02:58.7]} 2. Nf3 {[%clk 0:03:01.1]}
2... d5 {[%clk 0:02:57]} 3. g3 {[%clk 0:03:01]} 3... g6 {[%clk 0:02:57]} 4. Bg2
{[%clk 0:03:01.4]} 4... Bg7 {[%clk 0:02:57.6]} 5. O-O {[%clk 0:03:02]} 5... O-O
{[%clk 0:02:58.2]} 6. c4 {[%clk 0:03:02.4]} 6... dxc4 {[%clk 0:02:52.5]} 7. dxc4
{[%clk 0:03:02.1]} 7... Be6 {[%clk 0:02:48.2]} 8. Qb3 {[%clk 0:02:55.7]} 8...
Nbd7 {[%clk 0:02:35.2]} 9. Ng5 {[%clk 0:02:48.4]} 9... Nc5 {[%clk 0:02:32.1]}
10. Qa3 {[%clk 0:02:20.5]} 10... b6 {[%clk 0:02:08.1]} 11. Nxe6 {[%clk
0:01:52.1]} 11... Nxe6 {[%clk 0:02:07.6]} 12. Bxa8 {[%clk 0:01:41.1]} 12... Qxa8
{[%clk 0:02:08.5]} 13. Be3 {[%clk 0:01:33.1]} 13... Ng4 {[%clk 0:02:05.9]} 14.
Nd2 {[%clk 0:01:30.8]} 14... Nxe3 {[%clk 0:02:03.4]} 15. Qxe3 {[%clk 0:01:24.1]}
15... Bxb2 {[%clk 0:02:01.1]} 16. Rad1 {[%clk 0:01:23.4]} 16... h5 {[%clk
0:01:54.4]} 17. Qe4 {[%clk 0:01:18.4]} 17... Qe8 {[%clk 0:01:42.7]} 18. Nf3
{[%clk 0:01:18.3]} 18... Qa4 {[%clk 0:01:38.2]} 19. Rd2 {[%clk 0:01:16.7]} 19...
Bc3 {[%clk 0:01:31.8]} 20. Qc2 {[%clk 0:00:59.5]} 20... Qa5 {[%clk 0:01:20.2]}
21. Rd3 {[%clk 0:00:57.9]} 21... Bf6 {[%clk 0:01:19.6]} 22. h4 {[%clk
0:00:53.3]} 22... Nc5 {[%clk 0:01:15.4]} 23. Rd5 {[%clk 0:00:52.1]} 23... e6
{[%clk 0:01:13.5]} 24. Rdd1 {[%clk 0:00:49.8]} 24... Kg7 {[%clk 0:01:10.8]} 25.
Ng5 {[%clk 0:00:41.1]} 25... Bxg5 {[%clk 0:01:03.5]} 26. hxg5 {[%clk 0:00:40.9]}
26... Qa6 {[%clk 0:00:47.1]} 27. Qb2+ {[%clk 0:00:29.9]} 27... Kg8 {[%clk
0:00:45.9]} 28. Rd4 {[%clk 0:00:30.8]} 28... e5 {[%clk 0:00:37.5]} 29. Rd5
{[%clk 0:00:26.8]} 29... Qxc4 {[%clk 0:00:35.3]} 30. Qxe5 {[%clk 0:00:18.8]}
30... Qxa2 {[%clk 0:00:25.3]} 31. Rfd1 {[%clk 0:00:17.9]} 31... Ne6 {[%clk
0:00:25]} 32. Rd7 {[%clk 0:00:16.2]} 32... Qc2 {[%clk 0:00:19.4]} 33. R1d2
{[%clk 0:00:13.2]} 33... Qb1+ {[%clk 0:00:19.1]} 34. Kg2 {[%clk 0:00:13.3]}
34... a5 {[%clk 0:00:18.4]} 35. Re7 {[%clk 0:00:11.8]} 35... Qb3 {[%clk
0:00:16.5]} 36. Rdd7 {[%clk 0:00:08.2]} 36... a4 {[%clk 0:00:13.1]} 37. Qf6
{[%clk 0:00:07.8]} 37... a3 {[%clk 0:00:09.3]} 38. Kg1 {[%clk 0:00:01.1]} 38...
a2 {[%clk 0:00:09.3]} 39. Kg2 {[%clk 0:00:01.3]} 39... Qc4 {[%clk 0:00:06]} 40.
Rxf7 {[%clk 0:00:02.2]} 40... Rxf7 {[%clk 0:00:05.6]} 41. Qxf7+ {[%clk 0:00:02]}
1-0

[Event "Early-Titled-Tuesday-Blitz-May-14-2024"]
[Site "Chess.com"]
[Date "2024.05.14"]
[Round "7"]
[White "ChristopherYoo"]
[Black "crescentmoon2411"]
[Result "1-0"]
[WhiteElo "3004"]
[BlackElo "2852"]
[TimeControl "180+1"]
[EndTime "9:20:04 PDT"]
[Termination "ChristopherYoo won on time"]

1. e4 {[%clk 0:02:57.3]} 1... c6 {[%clk 0:02:59.9]} 2. Nf3 {[%clk 0:02:56.5]}
2... d5 {[%clk 0:03:00.5]} 3. Nc3 {[%clk 0:02:57.2]} 3... Bg4 {[%clk 0:02:59.4]}
4. d4 {[%clk 0:02:57.3]} 4... e6 {[%clk 0:02:58.4]} 5. Be2 {[%clk 0:02:56.8]}
5... dxe4 {[%clk 0:02:57.4]} 6. Nxe4 {[%clk 0:02:56.7]} 6... Nd7 {[%clk
0:02:58]} 7. h3 {[%clk 0:02:55.1]} 7... Bxf3 {[%clk 0:02:56.4]} 8. Bxf3 {[%clk
0:02:55]} 8... Ngf6 {[%clk 0:02:57.3]} 9. Nxf6+ {[%clk 0:02:48.5]} 9... Nxf6
{[%clk 0:02:58.2]} 10. O-O {[%clk 0:02:48.9]} 10... Bd6 {[%clk 0:02:58.2]} 11.
c4 {[%clk 0:02:48.8]} 11... Qc7 {[%clk 0:02:57.8]} 12. Bg5 {[%clk 0:02:43.8]}
12... Qe7 {[%clk 0:02:45.7]} 13. Qb3 {[%clk 0:02:33.7]} 13... O-O {[%clk
0:02:37.4]} 14. Rfe1 {[%clk 0:02:16.2]} 14... Rab8 {[%clk 0:02:35]} 15. Rad1
{[%clk 0:02:05.2]} 15... h6 {[%clk 0:02:34]} 16. Bd2 {[%clk 0:02:03.8]} 16...
Rfe8 {[%clk 0:02:22.5]} 17. Bc3 {[%clk 0:02:00.2]} 17... Qc7 {[%clk 0:02:11]}
18. Qc2 {[%clk 0:01:49.7]} 18... b5 {[%clk 0:01:55.8]} 19. b3 {[%clk 0:01:47.9]}
19... bxc4 {[%clk 0:01:55.8]} 20. bxc4 {[%clk 0:01:48.8]} 20... Bb4 {[%clk
0:01:55.9]} 21. Rb1 {[%clk 0:01:28.8]} 21... Bxc3 {[%clk 0:01:45.4]} 22. Qxc3
{[%clk 0:01:29.7]} 22... c5 {[%clk 0:01:43.1]} 23. Rxb8 {[%clk 0:01:23]} 23...
Rxb8 {[%clk 0:01:44]} 24. d5 {[%clk 0:01:23.3]} 24... exd5 {[%clk 0:01:43.8]}
25. cxd5 {[%clk 0:01:24.2]} 25... Qd6 {[%clk 0:01:24.3]} 26. Qa5 {[%clk
0:01:23.2]} 26... Rb7 {[%clk 0:01:21.7]} 27. Rc1 {[%clk 0:01:19.7]} 27... Rc7
{[%clk 0:01:16.1]} 28. Qb5 {[%clk 0:01:19.8]} 28... g6 {[%clk 0:01:05.1]} 29. a4
{[%clk 0:01:17.4]} 29... Nd7 {[%clk 0:00:51.4]} 30. g3 {[%clk 0:01:14.2]} 30...
Ne5 {[%clk 0:00:32.4]} 31. Be4 {[%clk 0:01:14.2]} 31... c4 {[%clk 0:00:26.6]}
32. f4 {[%clk 0:01:12.4]} 32... Nd7 {[%clk 0:00:10.1]} 33. Rxc4 {[%clk
0:01:09.7]} 33... Nc5 {[%clk 0:00:08.8]} 34. Qb4 {[%clk 0:01:02.8]} 34... h5
{[%clk 0:00:06.3]} 35. a5 {[%clk 0:00:59]} 35... h4 {[%clk 0:00:05]} 36. Qb8+
{[%clk 0:00:50.2]} 36... Kh7 {[%clk 0:00:03.9]} 37. gxh4 {[%clk 0:00:38.1]}
37... Qe7 {[%clk 0:00:04.2]} 38. f5 {[%clk 0:00:32.8]} 38... Kg7 {[%clk
0:00:01.6]} 39. Qb2+ {[%clk 0:00:30.7]} 39... f6 {[%clk 0:00:01.1]} 40. Qg2
{[%clk 0:00:24.3]} 40... Nxe4 {[%clk 0:00:00.2]} 41. Qxe4 {[%clk 0:00:13.5]} 1-0

[Event "Early-Titled-Tuesday-Blitz-May-14-2024"]
[Site "Chess.com"]
[Date "2024.05.14"]
[Round "7"]
[White "Mops_2004"]
[Black "hikaruchija"]
[Result "1-0"]
[WhiteElo "2818"]
[BlackElo "2607"]
[TimeControl "180+1"]
[EndTime "9:20:05 PDT"]
[Termination "Mops_2004 won on time"]

1. g3 {[%clk 0:03:00.9]} 1... g6 {[%clk 0:02:58.7]} 2. Bg2 {[%clk 0:03:00.4]}
2... Bg7 {[%clk 0:02:58.4]} 3. d4 {[%clk 0:03:00.9]} 3... d6 {[%clk 0:02:58.2]}
4. e4 {[%clk 0:03:00.1]} 4... Nd7 {[%clk 0:02:56.8]} 5. Nc3 {[%clk 0:02:59.8]}
5... e5 {[%clk 0:02:55.1]} 6. Nf3 {[%clk 0:02:58.2]} 6... exd4 {[%clk
0:02:53.9]} 7. Nxd4 {[%clk 0:02:58.2]} 7... Ngf6 {[%clk 0:02:54.2]} 8. O-O
{[%clk 0:02:58.1]} 8... O-O {[%clk 0:02:54.6]} 9. h3 {[%clk 0:02:58.7]} 9... c6
{[%clk 0:02:53.7]} 10. Nb3 {[%clk 0:02:58.1]} 10... Qc7 {[%clk 0:02:52]} 11. a4
{[%clk 0:02:57.5]} 11... Re8 {[%clk 0:02:51.2]} 12. Re1 {[%clk 0:02:57.4]} 12...
a5 {[%clk 0:02:49.3]} 13. f4 {[%clk 0:02:45]} 13... Nb6 {[%clk 0:02:37.5]} 14.
Rb1 {[%clk 0:02:42.1]} 14... Nh5 {[%clk 0:02:35.5]} 15. g4 {[%clk 0:02:29.9]}
15... Nf6 {[%clk 0:02:32.1]} 16. Be3 {[%clk 0:02:14.5]} 16... Be6 {[%clk
0:02:27.6]} 17. Nd4 {[%clk 0:02:11.4]} 17... Bc4 {[%clk 0:02:25.1]} 18. b3
{[%clk 0:02:08.8]} 18... Ba6 {[%clk 0:02:24.5]} 19. Bf2 {[%clk 0:02:00]} 19...
h5 {[%clk 0:02:19.3]} 20. g5 {[%clk 0:01:55.7]} 20... Nfd7 {[%clk 0:02:17.4]}
21. Qd2 {[%clk 0:01:44.5]} 21... Nc5 {[%clk 0:02:16.1]} 22. Rbd1 {[%clk
0:01:30.5]} 22... Rad8 {[%clk 0:02:14.4]} 23. Nb1 {[%clk 0:01:07.2]} 23... Nbd7
{[%clk 0:01:55.8]} 24. Re3 {[%clk 0:00:51.2]} 24... Nf8 {[%clk 0:01:53.1]} 25.
f5 {[%clk 0:00:47.8]} 25... Be5 {[%clk 0:01:50.2]} 26. Ree1 {[%clk 0:00:29.8]}
26... Qb8 {[%clk 0:01:09.5]} 27. Nf3 {[%clk 0:00:29.3]} 27... Bh8 {[%clk
0:00:31.5]} 28. Nh4 {[%clk 0:00:28.8]} 28... Be5 {[%clk 0:00:20.4]} 29. Qxa5
{[%clk 0:00:24.2]} 29... Bf4 {[%clk 0:00:17.1]} 30. Be3 {[%clk 0:00:14.4]} 30...
Bxe3+ {[%clk 0:00:15.8]} 31. Rxe3 {[%clk 0:00:14.2]} 31... b6 {[%clk 0:00:15]}
32. Qc3 {[%clk 0:00:13.2]} 32... d5 {[%clk 0:00:14.5]} 33. exd5 {[%clk
0:00:12.2]} 33... Rxe3 {[%clk 0:00:14.2]} 34. Qxe3 {[%clk 0:00:13.1]} 34... cxd5
{[%clk 0:00:13.1]} 35. Rxd5 {[%clk 0:00:12.3]} 35... Rxd5 {[%clk 0:00:12.1]} 36.
Bxd5 {[%clk 0:00:13.2]} 36... Qd6 {[%clk 0:00:11.9]} 37. Nc3 {[%clk 0:00:12.7]}
37... Kg7 {[%clk 0:00:09.5]} 38. Qd4+ {[%clk 0:00:12.2]} 38... f6 {[%clk
0:00:08.8]} 39. b4 {[%clk 0:00:11.2]} 39... Ncd7 {[%clk 0:00:07.4]} 40. Ne4
{[%clk 0:00:11.4]} 40... Qe5 {[%clk 0:00:06.9]} 41. gxf6+ {[%clk 0:00:11.2]}
41... Kh7 {[%clk 0:00:05.5]} 42. Ng5+ {[%clk 0:00:08]} 1-0

[Event "Early-Titled-Tuesday-Blitz-May-14-2024"]
[Site "Chess.com"]
[Date "2024.05.14"]
[Round "7"]
[White "Artemiki"]
[Black "Zhigalko_Sergei"]
[Result "0-1"]
[WhiteElo "2608"]
[BlackElo "2846"]
[TimeControl "180+1"]
[EndTime "9:20:05 PDT"]
[Termination "Zhigalko_Sergei won on time"]

1. e4 {[%clk 0:03:00.9]} 1... c5 {[%clk 0:03:00.1]} 2. Nf3 {[%clk 0:03:01]} 2...
Nc6 {[%clk 0:03:00.6]} 3. d4 {[%clk 0:03:01.4]} 3... cxd4 {[%clk 0:03:01.5]} 4.
Nxd4 {[%clk 0:03:01.8]} 4... Nf6 {[%clk 0:03:02.1]} 5. Nc3 {[%clk 0:03:02.3]}
5... e5 {[%clk 0:03:02.6]} 6. Ndb5 {[%clk 0:03:03]} 6... d6 {[%clk 0:03:03.1]}
7. Bg5 {[%clk 0:03:03.6]} 7... a6 {[%clk 0:03:03.6]} 8. Na3 {[%clk 0:03:04.2]}
8... b5 {[%clk 0:03:04.3]} 9. Nd5 {[%clk 0:03:04.7]} 9... Be7 {[%clk 0:03:04.8]}
10. Bxf6 {[%clk 0:03:05.4]} 10... Bxf6 {[%clk 0:03:05.7]} 11. c4 {[%clk
0:03:05.7]} 11... b4 {[%clk 0:03:05.9]} 12. Nc2 {[%clk 0:03:06.3]} 12... O-O
{[%clk 0:03:06.4]} 13. g3 {[%clk 0:03:05.7]} 13... a5 {[%clk 0:03:05.4]} 14. h4
{[%clk 0:03:05]} 14... Be6 {[%clk 0:03:04.4]} 15. Bh3 {[%clk 0:02:57.4]} 15...
a4 {[%clk 0:02:55.1]} 16. b3 {[%clk 0:02:39]} 16... Bxd5 {[%clk 0:02:13.4]} 17.
cxd5 {[%clk 0:02:22.8]} 17... Nd4 {[%clk 0:02:01.8]} 18. Nxd4 {[%clk 0:02:11.9]}
18... exd4 {[%clk 0:02:02]} 19. O-O {[%clk 0:02:11.9]} 19... Re8 {[%clk
0:01:25.2]} 20. Qd3 {[%clk 0:02:08.4]} 20... Qe7 {[%clk 0:01:25.2]} 21. f3
{[%clk 0:01:34.2]} 21... g6 {[%clk 0:01:01.3]} 22. Rfc1 {[%clk 0:01:27.5]} 22...
axb3 {[%clk 0:00:57.4]} 23. axb3 {[%clk 0:01:26.8]} 23... Ra3 {[%clk 0:00:58.1]}
24. Rab1 {[%clk 0:00:58.9]} 24... Qa7 {[%clk 0:00:36.4]} 25. Rc2 {[%clk
0:00:35.8]} 25... h5 {[%clk 0:00:30.8]} 26. Rbc1 {[%clk 0:00:33.2]} 26... Qa4
{[%clk 0:00:23.3]} 27. Rb2 {[%clk 0:00:10.6]} 27... Qa7 {[%clk 0:00:20.6]} 28.
Rbc2 {[%clk 0:00:10.3]} 28... Qa4 {[%clk 0:00:20.8]} 29. Rb2 {[%clk 0:00:10.8]}
29... Kg7 {[%clk 0:00:20.4]} 30. Qc4 {[%clk 0:00:07.6]} 30... Qa5 {[%clk
0:00:16.7]} 31. Qd3 {[%clk 0:00:08.2]} 31... Re7 {[%clk 0:00:16.5]} 32. Rbc2
{[%clk 0:00:07.7]} 32... Qa4 {[%clk 0:00:16.1]} 33. Rb2 {[%clk 0:00:07.9]} 33...
Qa7 {[%clk 0:00:13.8]} 34. Rbc2 {[%clk 0:00:07.5]} 34... Ra2 {[%clk 0:00:10.3]}
35. Kg2 {[%clk 0:00:03.2]} 35... Rxc2+ {[%clk 0:00:08.8]} 36. Rxc2 {[%clk
0:00:04.1]} 36... Qa1 {[%clk 0:00:08.7]} 37. Rc8 {[%clk 0:00:01.9]} 37... Ra7
{[%clk 0:00:08.7]} 38. Rc2 {[%clk 0:00:01.9]} 38... Ra3 {[%clk 0:00:08.3]} 39.
Qc4 {[%clk 0:00:01.5]} 39... Qb1 {[%clk 0:00:07.8]} 40. Qc8 {[%clk 0:00:01.2]}
40... d3 {[%clk 0:00:07.4]} 41. Rc7 {[%clk 0:00:00.9]} 41... Ra2+ {[%clk
0:00:07.9]} 0-1

[Event "Early-Titled-Tuesday-Blitz-May-14-2024"]
[Site "Chess.com"]
[Date "2024.05.14"]
[Round "7"]
[White "bennyficial"]
[Black "jbking07"]
[Result "1-0"]
[WhiteElo "2162"]
[BlackElo "2370"]
[TimeControl "180+1"]
[EndTime "9:20:05 PDT"]
[Termination "bennyficial won on time"]

1. Nf3 {[%clk 0:03:00.9]} 1... d5 {[%clk 0:02:59.9]} 2. e3 {[%clk 0:03:00.7]}
2... g6 {[%clk 0:02:59.7]} 3. c4 {[%clk 0:02:57.9]} 3... c6 {[%clk 0:02:58.3]}
4. Nc3 {[%clk 0:02:55]} 4... Bg7 {[%clk 0:02:56.2]} 5. b3 {[%clk 0:02:54.2]}
5... e5 {[%clk 0:02:54.9]} 6. cxd5 {[%clk 0:02:49.7]} 6... cxd5 {[%clk
0:02:54.8]} 7. d4 {[%clk 0:02:50.3]} 7... e4 {[%clk 0:02:47.6]} 8. Bb5+ {[%clk
0:02:35.6]} 8... Bd7 {[%clk 0:02:44.9]} 9. Bxd7+ {[%clk 0:02:23.7]} 9... Qxd7
{[%clk 0:02:42.6]} 10. Nd2 {[%clk 0:02:24.1]} 10... Ne7 {[%clk 0:02:33.8]} 11.
Ba3 {[%clk 0:02:23.3]} 11... Nbc6 {[%clk 0:02:28.2]} 12. Qe2 {[%clk 0:02:14.9]}
12... O-O {[%clk 0:02:27.4]} 13. O-O {[%clk 0:02:11.5]} 13... a6 {[%clk
0:02:26.8]} 14. Na4 {[%clk 0:01:56.8]} 14... Rad8 {[%clk 0:02:06.8]} 15. Rac1
{[%clk 0:01:48.5]} 15... f5 {[%clk 0:01:56.2]} 16. Nb6 {[%clk 0:01:37.7]} 16...
Qe6 {[%clk 0:01:53.6]} 17. Bxe7 {[%clk 0:01:29.2]} 17... Qxe7 {[%clk 0:01:43.3]}
18. Rc5 {[%clk 0:01:13.7]} 18... f4 {[%clk 0:01:41.7]} 19. Nxd5 {[%clk
0:01:11.6]} 19... Qf7 {[%clk 0:01:33.2]} 20. Nxf4 {[%clk 0:01:09.3]} 20... Nxd4
{[%clk 0:01:24.9]} 21. exd4 {[%clk 0:01:07.5]} 21... Qxf4 {[%clk 0:01:23]} 22.
d5 {[%clk 0:00:37.1]} 22... Bd4 {[%clk 0:01:15.9]} 23. Rc4 {[%clk 0:00:33]}
23... Rxd5 {[%clk 0:00:48.3]} 24. Nxe4 {[%clk 0:00:32.1]} 24... b5 {[%clk
0:00:39.7]} 25. g3 {[%clk 0:00:24.4]} 25... Qf5 {[%clk 0:00:33.7]} 26. Rb4
{[%clk 0:00:20.7]} 26... Bb6 {[%clk 0:00:26.6]} 27. Nc3 {[%clk 0:00:13.7]} 27...
Re5 {[%clk 0:00:25.2]} 28. Qd2 {[%clk 0:00:11.9]} 28... Ba5 {[%clk 0:00:20.4]}
29. Rf4 {[%clk 0:00:11.4]} 29... Qc8 {[%clk 0:00:17.7]} 30. Rxf8+ {[%clk
0:00:11.5]} 30... Kxf8 {[%clk 0:00:16.9]} 31. Qf4+ {[%clk 0:00:08.5]} 31... Rf5
{[%clk 0:00:17.1]} 32. Qd6+ {[%clk 0:00:05.7]} 32... Kg8 {[%clk 0:00:15.6]} 33.
Nd5 {[%clk 0:00:06.2]} 33... Bd8 {[%clk 0:00:09.5]} 34. Ne7+ {[%clk 0:00:04.5]}
34... Bxe7 {[%clk 0:00:09.8]} 35. Qxe7 {[%clk 0:00:05.4]} 35... Qc6 {[%clk
0:00:08.4]} 36. h4 {[%clk 0:00:04.8]} 36... a5 {[%clk 0:00:07.7]} 37. Rd1 {[%clk
0:00:04.5]} 37... Rf8 {[%clk 0:00:05.2]} 38. Rd7 {[%clk 0:00:03.3]} 38... Qc1+
{[%clk 0:00:04.9]} 39. Kg2 {[%clk 0:00:02.7]} 39... Qc6+ {[%clk 0:00:04.2]} 40.
Kh3 {[%clk 0:00:02.6]} 1-0

[Event "Early-Titled-Tuesday-Blitz-May-14-2024"]
[Site "Chess.com"]
[Date "2024.05.14"]
[Round "7"]
[White "Lion-Al-Messi"]
[Black "kids2010"]
[Result "1-0"]
[WhiteElo "2589"]
[BlackElo "2769"]
[TimeControl "180+1"]
[EndTime "9:20:06 PDT"]
[Termination "Lion-Al-Messi won by resignation"]

1. e4 {[%clk 0:02:57.7]} 1... c6 {[%clk 0:02:52]} 2. Nf3 {[%clk 0:02:57.4]} 2...
d5 {[%clk 0:02:52.9]} 3. Nc3 {[%clk 0:02:57.6]} 3... dxe4 {[%clk 0:02:50.9]} 4.
Nxe4 {[%clk 0:02:57.8]} 4... Nf6 {[%clk 0:02:51.8]} 5. Nxf6+ {[%clk 0:02:58]}
5... exf6 {[%clk 0:02:52.7]} 6. Bc4 {[%clk 0:02:58.3]} 6... Bd6 {[%clk
0:02:47.7]} 7. Qe2+ {[%clk 0:02:58.2]} 7... Qe7 {[%clk 0:02:48.4]} 8. Qxe7+
{[%clk 0:02:58.1]} 8... Kxe7 {[%clk 0:02:49.3]} 9. O-O {[%clk 0:02:57.7]} 9...
Be6 {[%clk 0:02:45.6]} 10. Re1 {[%clk 0:02:57.4]} 10... Kd7 {[%clk 0:02:45.7]}
11. Be2 {[%clk 0:02:57.1]} 11... Na6 {[%clk 0:02:46.2]} 12. c3 {[%clk
0:02:52.3]} 12... Nc7 {[%clk 0:02:44]} 13. d4 {[%clk 0:02:52.1]} 13... b5 {[%clk
0:02:44.5]} 14. a4 {[%clk 0:02:51.1]} 14... a6 {[%clk 0:02:42.3]} 15. h3 {[%clk
0:02:49.8]} 15... g6 {[%clk 0:02:37.8]} 16. Bd2 {[%clk 0:02:48.2]} 16... Bb3
{[%clk 0:02:36.1]} 17. axb5 {[%clk 0:02:45.4]} 17... axb5 {[%clk 0:02:37]} 18.
Be3 {[%clk 0:02:43.4]} 18... Nd5 {[%clk 0:02:33.8]} 19. Nd2 {[%clk 0:02:43.4]}
19... Nxe3 {[%clk 0:02:29.5]} 20. Nxb3 {[%clk 0:02:39]} 20... Nd5 {[%clk
0:02:25]} 21. Bf3 {[%clk 0:02:37]} 21... Nb6 {[%clk 0:02:22.9]} 22. Na5 {[%clk
0:02:29.5]} 22... Rhc8 {[%clk 0:02:19.9]} 23. g4 {[%clk 0:02:11.9]} 23... Na4
{[%clk 0:02:18.3]} 24. Nxc6 {[%clk 0:01:53.2]} 24... Rxc6 {[%clk 0:02:19.2]} 25.
b3 {[%clk 0:01:50.6]} 25... Nb6 {[%clk 0:02:11.9]} 26. Rxa8 {[%clk 0:01:49.2]}
26... Nxa8 {[%clk 0:02:12.3]} 27. Ra1 {[%clk 0:01:46.3]} 27... Nb6 {[%clk
0:01:58.2]} 28. Bxc6+ {[%clk 0:01:43.4]} 28... Kxc6 {[%clk 0:01:59.1]} 29. Ra7
{[%clk 0:01:37.3]} 29... Bc7 {[%clk 0:01:59.3]} 30. Kf1 {[%clk 0:01:33.3]} 30...
h6 {[%clk 0:01:52.6]} 31. h4 {[%clk 0:01:28.1]} 31... h5 {[%clk 0:01:47.7]} 32.
gxh5 {[%clk 0:01:27.7]} 32... gxh5 {[%clk 0:01:48.6]} 33. Ke2 {[%clk 0:01:23.7]}
33... Nd5 {[%clk 0:01:30.2]} 34. Kd3 {[%clk 0:01:21.1]} 34... Nf4+ {[%clk
0:01:30.2]} 35. Ke4 {[%clk 0:01:18.2]} 35... Ng6 {[%clk 0:01:27.7]} 36. c4
{[%clk 0:01:10.9]} 36... bxc4 {[%clk 0:01:27.8]} 37. bxc4 {[%clk 0:01:11]} 37...
Nxh4 {[%clk 0:01:28.4]} 38. Ra6+ {[%clk 0:01:10.6]} 38... Kb7 {[%clk 0:00:35.8]}
39. Rxf6 {[%clk 0:01:09.8]} 39... Ng6 {[%clk 0:00:36.2]} 40. Rxf7 {[%clk
0:01:06.9]} 40... h4 {[%clk 0:00:36.2]} 41. Rh7 {[%clk 0:01:07.1]} 41... Nf8
{[%clk 0:00:29.7]} 42. Rh6 {[%clk 0:01:05.3]} 42... Bd8 {[%clk 0:00:29.3]} 43.
c5 {[%clk 0:01:02.1]} 43... Kc8 {[%clk 0:00:29.6]} 44. d5 {[%clk 0:01:02.1]}
44... Nd7 {[%clk 0:00:29.6]} 45. Kd4 {[%clk 0:00:51.6]} 45... Bg5 {[%clk
0:00:24.3]} 46. Rh8+ {[%clk 0:00:50]} 46... Kc7 {[%clk 0:00:24.8]} 47. d6+
{[%clk 0:00:49.5]} 47... Kb7 {[%clk 0:00:18]} 48. Kd5 {[%clk 0:00:48.2]} 48...
Nf6+ {[%clk 0:00:17.8]} 49. Ke6 {[%clk 0:00:48.3]} 49... Ng4 {[%clk 0:00:15]}
50. Rg8 {[%clk 0:00:30.3]} 50... Nxf2 {[%clk 0:00:11.2]} 51. Rxg5 {[%clk
0:00:29.2]} 51... Ne4 {[%clk 0:00:11.6]} 52. Rh5 {[%clk 0:00:29.1]} 52... h3
{[%clk 0:00:10.3]} 53. d7 {[%clk 0:00:27.6]} 53... Kc7 {[%clk 0:00:08.7]} 54.
Ke7 {[%clk 0:00:27.5]} 1-0

[Event "Early-Titled-Tuesday-Blitz-May-14-2024"]
[Site "Chess.com"]
[Date "2024.05.14"]
[Round "7"]
[White "SirStrateg"]
[Black "DishonorOnYourCow"]
[Result "1-0"]
[WhiteElo "2687"]
[BlackElo "2532"]
[TimeControl "180+1"]
[EndTime "9:20:07 PDT"]
[Termination "SirStrateg won on time"]

1. d4 {[%clk 0:03:00.9]} 1... Nf6 {[%clk 0:02:58.9]} 2. Bg5 {[%clk 0:03:00.6]}
2... Ne4 {[%clk 0:02:58.7]} 3. Bf4 {[%clk 0:03:01.2]} 3... d5 {[%clk 0:02:58.7]}
4. e3 {[%clk 0:03:01.8]} 4... g6 {[%clk 0:02:58.7]} 5. Bd3 {[%clk 0:02:59.2]}
5... Bg7 {[%clk 0:02:58.6]} 6. Bxe4 {[%clk 0:02:58.8]} 6... dxe4 {[%clk
0:02:59.5]} 7. Nc3 {[%clk 0:02:59.1]} 7... c5 {[%clk 0:02:58.3]} 8. dxc5 {[%clk
0:02:42.2]} 8... Qa5 {[%clk 0:02:55.5]} 9. Ne2 {[%clk 0:02:39.1]} 9... Bg4
{[%clk 0:02:43.1]} 10. O-O {[%clk 0:02:11.1]} 10... Bxc3 {[%clk 0:02:42.5]} 11.
bxc3 {[%clk 0:02:09.2]} 11... O-O {[%clk 0:02:42.5]} 12. f3 {[%clk 0:01:58.6]}
12... exf3 {[%clk 0:02:41.3]} 13. gxf3 {[%clk 0:01:59.1]} 13... Bh3 {[%clk
0:02:39.5]} 14. Rf2 {[%clk 0:01:59.7]} 14... Rd8 {[%clk 0:02:30.5]} 15. Qb1
{[%clk 0:01:59.5]} 15... Qxc5 {[%clk 0:02:23.3]} 16. Qxb7 {[%clk 0:01:59.6]}
16... Nd7 {[%clk 0:02:22.6]} 17. Qc7 {[%clk 0:01:42.3]} 17... Qf5 {[%clk
0:02:10]} 18. e4 {[%clk 0:01:38.4]} 18... Qf6 {[%clk 0:02:00.5]} 19. Rd1 {[%clk
0:01:28.8]} 19... Rac8 {[%clk 0:01:46.4]} 20. Qxa7 {[%clk 0:01:25.7]} 20... Ne5
{[%clk 0:01:41.5]} 21. Re1 {[%clk 0:01:01.6]} 21... g5 {[%clk 0:01:15.5]} 22.
Bxe5 {[%clk 0:00:57.6]} 22... Qxe5 {[%clk 0:01:16.4]} 23. Qe3 {[%clk 0:00:53.5]}
23... Qg7 {[%clk 0:00:46]} 24. Kh1 {[%clk 0:00:48.9]} 24... Kh8 {[%clk
0:00:28.2]} 25. f4 {[%clk 0:00:42.6]} 25... g4 {[%clk 0:00:26.9]} 26. e5 {[%clk
0:00:39.2]} 26... Qh6 {[%clk 0:00:24]} 27. Ng3 {[%clk 0:00:37.9]} 27... Qc6+
{[%clk 0:00:22.8]} 28. Kg1 {[%clk 0:00:32.1]} 28... Qxc3 {[%clk 0:00:21.4]} 29.
Qxc3 {[%clk 0:00:32.3]} 29... Rxc3 {[%clk 0:00:22.3]} 30. Ra1 {[%clk 0:00:27.2]}
30... Ra3 {[%clk 0:00:20.3]} 31. c4 {[%clk 0:00:23.7]} 31... Rc8 {[%clk
0:00:19.6]} 32. Rc1 {[%clk 0:00:23.2]} 32... e6 {[%clk 0:00:19.6]} 33. c5 {[%clk
0:00:20.6]} 33... Ra5 {[%clk 0:00:14.2]} 34. c6 {[%clk 0:00:20.6]} 34... Rc7
{[%clk 0:00:13.8]} 35. Rfc2 {[%clk 0:00:18.5]} 35... Ra4 {[%clk 0:00:13.9]} 36.
Rf2 {[%clk 0:00:17.4]} 36... Ra6 {[%clk 0:00:12.8]} 37. Rfc2 {[%clk 0:00:17.4]}
37... Ra4 {[%clk 0:00:13.4]} 38. Rb2 {[%clk 0:00:09.1]} 38... Rxf4 {[%clk
0:00:12.2]} 39. Rb7 {[%clk 0:00:09.3]} 39... Rc8 {[%clk 0:00:09.4]} 40. c7
{[%clk 0:00:09.3]} 40... h5 {[%clk 0:00:01.8]} 41. Rb8 {[%clk 0:00:09.2]} 41...
h4 {[%clk 0:00:02.4]} 42. Rxc8+ {[%clk 0:00:09.5]} 42... Kh7 {[%clk 0:00:03.1]}
43. Rh8+ {[%clk 0:00:09.6]} 1-0